[Event "GER-chW 2019"]
[Site "Magdeburg"]
[Date "2019.05.28"]
[Round "3.10"]
[White "Braun, Kristin"]
[Black "Bashylina, Luisa"]
[Result "1-0"]
[ECO "B28"]
[WhiteElo "1895"]
[BlackElo "1812"]
[Annotator "NA"]
[PlyCount "103"]
[EventDate "2019.05.26"]
[EventType "tourn"]
[EventCountry "GER"]
[SourceTitle "playchess.com"]
[Source "ChessBase"]
[SourceQuality "1"]
[TimeControl "40/5400+30:1800+30"]

1. e4 {[%emt 0:00:00]} c5 {[%emt 0:00:00]} 2. Nf3 {[%emt 0:00:00]} a6 {[%emt 0:00:25]} 3. c4 {[%emt 0:01:10]} Nc6 {[%emt 0:01:35]} 4. d4 {[%emt 0:01:36]} cxd4 {[%emt 0:01:24]} 5. Nxd4 {[%emt 0:00:05]} e5 {[%emt 0:04:27]} 6. Nf5 {[%emt 0:04:20]} d6 {[%emt 0:05:30] B28: Sicilian: 2 Nf3 a6 (O'Kelly Variation)} 7. Ne3 {[%emt 0:02:21]} (7. Nc3 g6 8. Ne3 Bh6 9. g3 Nf6 10. Bg2 O-O 11. O-O b5 12. f4 exf4 13. gxf4 Bb7 14. e5 dxe5 15. fxe5 {1-0 (40) Salem,A (2638)-Rapport,R (2694) Geneva 2017}) 7... Nf6 {[%emt 0:02:19]} 8. Nc3 {[%emt 0:01:08]} Be6 {[%emt 0:03:00]} 9. Be2 {[%emt 0:02:40]} Be7 {[%emt 0:02:02]} 10. O-O {[%emt 0:00:17]} O-O {[%emt 0:00:28]} 11. Ned5 {[%emt 0:09:03]} Bxd5 {[%emt 0:02:23]} 12. cxd5 {[%emt 0:02:52]} Nb8 {[%emt 0:07:34]} 13. Be3 {[%emt 0:04:39]} b5 $146 {[%emt 0:00:48]} ({Predecessor:} 13... Nbd7 14. Rc1 {1-0 (56) Aakanksha,H (2283)-Filipovic,B (2413) Sarajevo 2017}) 14. b4 {[%emt 0:02:30]} Nbd7 {[%emt 0:04:29]} 15. a4 {[%emt 0:08:08]} a5 {[%emt 0:02:33]} 16. f3 {[%emt 0:02:45]} bxa4 {[%emt 0:03:13]} 17. b5 {[%emt 0:01:31]} Nb6 {[%emt 0:10:26]} 18. Nxa4 {[%emt 0:01:06]} Nfd7 {[%emt 0:00:36]} (18... Nxa4 $16 19. Rxa4 (19. Qxa4 Nd7 $16) 19... Nd7) 19. Qd2 {[%emt 0:04:25]} Nxa4 {[%emt 0:02:46]} 20. Rxa4 {[%emt 0:00:07]} f5 {[%emt 0:05:38]} 21. Rb1 {[%emt 0:06:51]} f4 {[%emt 0:09:01]} 22. Bf2 {[%emt 0:00:39]} Bh4 {[%emt 0:02:54]} 23. Bxh4 {[%emt 0:02:10]} Qxh4 {[%emt 0:00:06]} 24. Rxa5 {[%emt 0:02:25]} Rab8 {[%emt 0:01:25]} 25. Qe1 {[%emt 0:03:04]} Qh5 {[%emt 0:00:49]} 26. Qf2 {[%emt 0:02:27]} Rf6 {[%emt 0:01:15]} 27. b6 {[%emt 0:04:33]} Nc5 {[%emt 0:04:02]} 28. Ra7 {[%emt 0:06:20]} Rh6 {[%emt 0:02:56] [#]} 29. h3 $1 {[%emt 0:01:10]} Qg6 {[%emt 0:02:16]} (29... Rf6 $142 30. b7 h6) 30. Kf1 {[%emt 0:01:29]} Nxe4 $2 {[%emt 0:01:43]} (30... Qg3 31. Qxg3 fxg3) 31. fxe4 {[%emt 0:04:18]} Qxe4 {[%emt 0:00:33]} 32. Rc1 {[%emt 0:02:32]} Qb4 {[%emt 0:02:33]} 33. Ba6 {[%emt 0:02:00]} f3 {[%emt 0:01:33]} 34. gxf3 {[%emt 0:02:41]} ({Weaker is} 34. Qxf3 Rf6 $11) 34... Qf4 {[%emt 0:06:16]} 35. Rcc7 $18 {[%emt 0:02:12]} (35. Rc4 $142 e4 36. Bc8) 35... Rg6 {[%emt 0:00:16]} 36. b7 {[%emt 0:01:05]} Qa4 {[%emt 0:01:14]} 37. Rc8+ {[%emt 0:01:28]} Kf7 {[%emt 0:00:13]} 38. Be2 {[%emt 0:00:10]} Qb3 {[%emt 0:01:49]} 39. Rc7+ {[%emt 0:05:29]} Kg8 {[%emt 0:03:04]} 40. Rc8+ {[%emt 0:04:34]} Kf7 {[%emt 0:00:08]} 41. Rc7+ {[%emt 0:05:53]} Kg8 {[%emt 0:03:26]} 42. Ra1 {[%emt 0:04:01]} e4 {[%emt 0:12:34]} 43. Rc8+ {[%emt 0:05:06]} Kf7 {[%emt 0:00:15]} 44. Rxb8 {[%emt 0:06:49]} Rf6 {[%emt 0:06:08]} 45. Rba8 {[%emt 0:02:27]} exf3 {[%emt 0:00:54]} 46. Bd1 {[%emt 0:03:31]} Qd3+ {[%emt 0:07:10]} 47. Kg1 {[%emt 0:00:43]} Rg6+ {[%emt 0:02:51]} 48. Kh1 {[%emt 0:00:32]} Rg3 {[%emt 0:03:45]} 49. Rf8+ {[%emt 0:00:13]} Ke7 {[%emt 0:00:16]} 50. Qe1+ {[%emt 0:01:16]} Kxf8 {[%emt 0:01:21]} 51. b8=Q+ {[%emt 0:00:20]} Kf7 {[%emt 0:00:17]} 52. Qe6# 1-0

[Event "GER-chW 2019"]
[Site "Magdeburg"]
[Date "2019.05.28"]
[Round "4.1"]
[White "Michna, Marta"]
[Black "Koehler, Inken"]
[Result "1-0"]
[ECO "A04"]
[WhiteElo "2355"]
[BlackElo "1979"]
[Annotator "ChessBase"]
[PlyCount "85"]
[EventDate "2019.05.26"]
[EventType "tourn"]
[EventCountry "GER"]
[SourceTitle "playchess.com"]
[Source "ChessBase"]
[SourceQuality "1"]
[TimeControl "40/5400+30:1800+30"]

1. Nf3 {[%emt 0:00:00]} g6 {[%emt 0:00:00]} 2. d3 {[%emt 0:00:18]} Bg7 {[%emt 0:00:00]} 3. e4 {[%emt 0:00:08]} d6 {[%emt 0:00:34]} 4. c3 {[%emt 0:01:17]} c5 {[%emt 0:01:53]} 5. Be2 {[%emt 0:01:36]} Nc6 {[%emt 0:00:37]} 6. O-O {[%emt 0:00:06]} e5 {[%emt 0:02:36]} 7. Be3 {[%emt 0:04:06]} Nge7 {[%emt 0:01:22]} 8. a4 {[%emt 0:08:29]} O-O {[%emt 0:02:01]} 9. Qd2 {[%emt 0:02:37]} f5 {[%emt 0:07:05]} 10. Bh6 {[%emt 0:00:08]} f4 {[%emt 0:01:04]} 11. Bxg7 {[%emt 0:00:09]} Kxg7 {[%emt 0:00:02]} 12. h3 {[%emt 0:11:00]} Ng8 {[%emt 0:10:14]} 13. d4 {[%emt 0:12:50]} Nf6 {[%emt 0:01:52]} 14. dxe5 {[%emt 0:03:26]} dxe5 {[%emt 0:01:29]} 15. Qxd8 {[%emt 0:07:48]} Rxd8 {[%emt 0:00:05]} 16. Nbd2 {[%emt 0:00:11]} Be6 {[%emt 0:09:34]} 17. a5 {[%emt 0:07:23]} a6 {[%emt 0:01:38]} 18. Rfe1 {[%emt 0:00:41]} Rd6 {[%emt 0:20:22]} 19. Bc4 {[%emt 0:04:12]} Rad8 {[%emt 0:01:51]} 20. Bxe6 {[%emt 0:04:03]} Rxe6 {[%emt 0:00:11]} 21. Nb3 {[%emt 0:07:16]} Nd7 {[%emt 0:02:33]} 22. Nfd2 {[%emt 0:00:53]} Kf6 {[%emt 0:06:46]} 23. Nc4 {[%emt 0:00:21]} Ke7 {[%emt 0:00:24]} 24. Red1 {[%emt 0:03:46]} Na7 {[%emt 0:01:50]} 25. Rd5 {[%emt 0:05:46]} Rc8 {[%emt 0:03:11]} 26. Rad1 {[%emt 0:04:08]} Nf6 {[%emt 0:00:16]} 27. Rxe5 {[%emt 0:00:04]} Rxe5 {[%emt 0:00:37]} 28. Nxe5 {[%emt 0:00:04]} Ke6 {[%emt 0:01:41]} 29. Nc4 {[%emt 0:00:40]} Nb5 {[%emt 0:01:32]} 30. f3 {[%emt 0:02:04]} g5 {[%emt 0:00:55]} 31. Nb6 {[%emt 0:04:02]} Rc6 {[%emt 0:02:10]} 32. Na4 {[%emt 0:00:42]} c4 {[%emt 0:03:04]} 33. Nbc5+ {[%emt 0:00:11]} Ke7 {[%emt 0:00:21]} 34. e5 {[%emt 0:00:56]} Ne8 {[%emt 0:00:38]} 35. Rd7+ {[%emt 0:00:40]} Kf8 {[%emt 0:00:03]} 36. Rxh7 {[%emt 0:00:42]} Ng7 {[%emt 0:00:44]} 37. Rh8+ {[%emt 0:00:15]} Kf7 {[%emt 0:00:40]} 38. Rb8 {[%emt 0:00:48]} Ne6 {[%emt 0:01:15]} 39. Rxb7+ {[%emt 0:00:13]} Kg6 {[%emt 0:00:11]} 40. Rb6 {[%emt 0:00:41]} Nd8 {[%emt 0:00:59]} 41. Nxa6 {[%emt 0:31:23]} Kf5 {[%emt 0:30:43]} 42. N6c5 {[%emt 0:00:24]} Kxe5 {[%emt 0:00:23]} 43. Rxb5 {[%emt 0:00:06]} 1-0

[Event "GER-chW 2019"]
[Site "Magdeburg"]
[Date "2019.05.28"]
[Round "4.2"]
[White "Burchardt, Brigitte"]
[Black "Schulze, Lara"]
[Result "0-1"]
[ECO "C07"]
[WhiteElo "2094"]
[BlackElo "2160"]
[Annotator "ChessBase"]
[PlyCount "86"]
[EventDate "2019.05.26"]
[EventType "tourn"]
[EventCountry "GER"]
[SourceTitle "playchess.com"]
[Source "ChessBase"]
[SourceQuality "1"]
[TimeControl "40/5400+30:1800+30"]

1. e4 {[%emt 0:00:00]} e6 {[%emt 0:00:00]} 2. d4 {[%emt 0:00:00]} d5 {[%emt 0:00:00]} 3. Nd2 {[%emt 0:00:00]} c5 {[%emt 0:00:00]} 4. exd5 {[%emt 0:01:01]} Qxd5 {[%emt 0:00:00]} 5. Ngf3 {[%emt 0:00:42]} cxd4 {[%emt 0:00:00]} 6. Bc4 {[%emt 0:00:45]} Qd7 {[%emt 0:00:03]} 7. O-O {[%emt 0:02:08]} Nc6 {[%emt 0:00:04]} 8. Nb3 {[%emt 0:00:33]} a6 {[%emt 0:00:09]} 9. Nbxd4 {[%emt 0:00:52]} Nxd4 {[%emt 0:00:02]} 10. Qxd4 {[%emt 0:00:48]} Qxd4 {[%emt 0:00:20]} 11. Nxd4 {[%emt 0:00:05]} Nf6 {[%emt 0:03:46]} 12. h3 {[%emt 0:01:10]} Bc5 {[%emt 0:03:08]} 13. Nb3 {[%emt 0:02:20]} Be7 {[%emt 0:05:45]} 14. a4 {[%emt 0:02:04]} b6 {[%emt 0:02:18]} 15. Be3 {[%emt 0:00:56]} Nd7 {[%emt 0:02:00]} 16. Rfd1 {[%emt 0:01:37]} Bb7 {[%emt 0:19:40]} 17. Rd2 {[%emt 0:05:14]} Rc8 {[%emt 0:03:06]} 18. Be2 {[%emt 0:01:09]} Nc5 {[%emt 0:05:55]} 19. Nxc5 {[%emt 0:04:10]} Bxc5 {[%emt 0:00:47]} 20. Bxc5 {[%emt 0:01:26]} Rxc5 {[%emt 0:00:07]} 21. c3 {[%emt 0:01:16]} Ke7 {[%emt 0:08:16]} 22. Rad1 {[%emt 0:19:26]} Bc6 {[%emt 0:02:53]} 23. Rd4 {[%emt 0:02:48]} a5 {[%emt 0:03:03]} 24. Kh2 {[%emt 0:07:49]} e5 {[%emt 0:04:07]} 25. Rg4 {[%emt 0:04:43]} g6 {[%emt 0:00:50]} 26. Re1 {[%emt 0:01:58]} f6 {[%emt 0:08:13]} 27. Rg3 {[%emt 0:04:36]} Bxa4 {[%emt 0:01:52]} 28. b4 {[%emt 0:00:14]} axb4 {[%emt 0:01:50]} 29. cxb4 {[%emt 0:00:05]} Rd5 {[%emt 0:05:51]} 30. Rc3 {[%emt 0:02:31]} Kd6 {[%emt 0:03:41]} 31. Ra1 {[%emt 0:07:08]} Bd7 {[%emt 0:03:23]} 32. Ra7 {[%emt 0:03:36]} Rc8 {[%emt 0:02:27]} 33. Rxc8 {[%emt 0:01:43]} Bxc8 {[%emt 0:00:01]} 34. Rf7 {[%emt 0:06:44]} Rd2 {[%emt 0:05:06]} 35. Bb5 {[%emt 0:09:44]} Rxf2 {[%emt 0:01:54]} 36. Rxh7 {[%emt 0:00:07]} e4 {[%emt 0:04:18]} 37. Kg3 {[%emt 0:04:18]} e3 {[%emt 0:00:53]} 38. Rh8 {[%emt 0:00:35]} Bb7 {[%emt 0:00:48]} 39. Rd8+ {[%emt 0:00:55]} Ke5 {[%emt 0:01:43]} 40. Re8+ {[%emt 0:01:26]} Kd4 {[%emt 0:00:14]} 41. h4 {[%emt 0:03:04]} Rxg2+ {[%emt 0:04:29]} 42. Kh3 {[%emt 0:02:00]} Rb2 {[%emt 0:04:18]} 43. h5 {[%emt 0:07:00]} gxh5 {[%emt 0:01:11]} 0-1

[Event "GER-chW 2019"]
[Site "Magdeburg"]
[Date "2019.05.28"]
[Round "4.3"]
[White "Schmidt, Jade"]
[Black "Kopylov, Luba"]
[Result "1-0"]
[ECO "A50"]
[WhiteElo "2062"]
[BlackElo "2078"]
[Annotator "NA"]
[PlyCount "114"]
[EventDate "2019.05.26"]
[EventType "tourn"]
[EventCountry "GER"]
[SourceTitle "playchess.com"]
[Source "ChessBase"]
[SourceQuality "1"]
[TimeControl "40/5400+30:1800+30"]

1. d4 {[%emt 0:00:00]} Nf6 {[%emt 0:00:26]} 2. c4 {[%emt 0:00:00]} Nc6 {[%emt 0:02:32]} 3. Nf3 {[%emt 0:02:18]} e6 {[%emt 0:03:00]} 4. a3 {[%emt 0:14:07]} d5 {[%emt 0:04:54]} 5. cxd5 {[%emt 0:02:41]} exd5 {[%emt 0:00:29]} 6. Bg5 {[%emt 0:02:18] E10: Blumenfeld Gambit} Be7 {[%emt 0:01:07]} 7. Nc3 {[%emt 0:01:24]} Ne4 {[%emt 0:06:16]} 8. Bxe7 {[%emt 0:11:59]} Nxe7 {[%emt 0:01:35]} 9. Rc1 {[%emt 0:04:54]} c6 {[%emt 0:04:24]} 10. e3 {[%emt 0:00:17]} Nxc3 $146 {[%emt 0:07:35]} ({Predecessor:} 10... Bf5 11. Be2 O-O 12. O-O Ng6 13. b4 Qe7 {½-½ (41) Gentes,K (2298)-Orlov,G (2512) Vancouver 2001}) 11. Rxc3 {[%emt 0:00:39]} a5 {[%emt 0:02:45]} 12. Bd3 {[%emt 0:14:37]} Bf5 {[%emt 0:01:10]} 13. O-O {[%emt 0:12:07]} a4 {[%emt 0:02:15]} 14. Ne5 {[%emt 0:08:02]} O-O {[%emt 0:04:55]} 15. Qc2 {[%emt 0:03:38]} Qc8 {[%emt 0:02:32]} 16. Bxf5 {[%emt 0:02:36]} Qxf5 {[%emt 0:00:48]} 17. Qxf5 {[%emt 0:02:39]} Nxf5 {[%emt 0:00:10]} 18. Nd3 {[%emt 0:01:14]} Nd6 {[%emt 0:00:23]} 19. Nc5 {[%emt 0:01:00]} Nc4 {[%emt 0:09:35]} 20. Rc2 {[%emt 0:02:51]} b6 {[%emt 0:01:29]} 21. Nd3 {[%emt 0:04:37]} Rfe8 {[%emt 0:04:33]} 22. Nb4 {[%emt 0:00:51]} Rac8 {[%emt 0:00:16]} 23. Na2 {[%emt 0:00:41]} c5 {[%emt 0:10:56]} 24. Rd1 {[%emt 0:02:52]} g6 {[%emt 0:08:24]} 25. g3 {[%emt 0:00:54]} Red8 {[%emt 0:06:28]} 26. Nc3 {[%emt 0:01:21]} cxd4 {[%emt 0:01:24]} 27. Rxd4 {[%emt 0:00:07]} Ne5 {[%emt 0:05:18]} 28. Kg2 {[%emt 0:01:09]} b5 {[%emt 0:00:15]} 29. Re2 {[%emt 0:00:31]} Rxc3 {[%emt 0:02:42]} 30. bxc3 {[%emt 0:00:16]} Nc4 {[%emt 0:00:09]} 31. Ra2 {[%emt 0:00:30]} f5 {[%emt 0:00:09]} 32. Kf1 {[%emt 0:01:12]} Kf7 {[%emt 0:00:14]} 33. Ke2 {[%emt 0:00:20]} Ke6 {[%emt 0:00:09]} 34. g4 {[%emt 0:00:34]} Rc8 {[%emt 0:03:20]} 35. gxf5+ {[%emt 0:00:12]} gxf5 {[%emt 0:00:04]} 36. Rh4 {[%emt 0:00:18]} Ne5 {[%emt 0:00:48]} 37. Rh6+ {[%emt 0:00:59]} Kf7 {[%emt 0:00:51]} 38. Rxh7+ {[%emt 0:00:19]} Kg6 {[%emt 0:00:05]} 39. Rb7 {[%emt 0:00:56]} Rc5 {[%emt 0:00:53]} 40. f4 {[%emt 0:01:10]} Ng4 {[%emt 0:02:39]} 41. h3 {[%emt 0:30:26]} Nf6 {[%emt 0:30:08]} 42. Kd3 {[%emt 0:00:00]} Ne4 {[%emt 0:00:00]} 43. Rg2+ {[%emt 0:00:00]} Kh6 {[%emt 0:00:00]} 44. Rb6+ {[%emt 0:00:00]} Kh7 {[%emt 0:00:00]} 45. Rc2 {[%emt 0:00:00]} Kg7 {[%emt 0:00:00]} 46. h4 {[%emt 0:00:00]} Nf6 {[%emt 0:00:00]} 47. Rb2 {[%emt 0:00:00]} Ne4 {[%emt 0:00:00]} 48. R2xb5 {[%emt 0:00:00]} Rxc3+ {[%emt 0:00:00]} 49. Kd4 {[%emt 0:00:00]} Rxa3 {[%emt 0:00:00]} 50. Rxd5 {[%emt 0:00:00]} Nf6 {[%emt 0:00:00]} 51. Rxf5 {[%emt 0:00:00]} Ne8 {[%emt 0:00:00]} 52. Ra5 {[%emt 0:00:00]} Ra1 {[%emt 0:00:00]} 53. Ra7+ {[%emt 0:00:00]} Kf8 {[%emt 0:00:00]} 54. Rb8 {[%emt 0:00:00]} Rd1+ {[%emt 0:00:00]} 55. Ke5 {[%emt 0:00:44]} a3 {[%emt 0:00:00]} 56. Rxa3 {[%emt 0:00:27]} Rd7 {[%emt 0:00:00]} 57. Raa8 {[%emt 0:00:15]} Re7+ {[%emt 0:00:00] Ke4} 1-0

[Event "GER-chW 2019"]
[Site "Magdeburg"]
[Date "2019.05.28"]
[Round "4.4"]
[White "Von Herman, Brigitte"]
[Black "Liu, Sijia Anna"]
[Result "0-1"]
[ECO "B22"]
[WhiteElo "2064"]
[BlackElo "1689"]
[Annotator "NA"]
[PlyCount "46"]
[EventDate "2019.05.26"]
[EventType "tourn"]
[EventCountry "GER"]
[SourceTitle "playchess.com"]
[Source "ChessBase"]
[SourceQuality "1"]
[TimeControl "40/5400+30:1800+30"]

1. e4 {[%emt 0:00:00]} c5 {[%emt 0:00:00]} 2. c3 {[%emt 0:00:00]} d5 {[%emt 0:00:00]} 3. exd5 {[%emt 0:00:00]} Qxd5 {[%emt 0:00:06]} 4. d4 {[%emt 0:00:00]} Nc6 {[%emt 0:00:30]} 5. Nf3 {[%emt 0:00:05]} cxd4 {[%emt 0:00:30]} 6. cxd4 {[%emt 0:00:09]} e5 {[%emt 0:00:36]} 7. Nc3 {[%emt 0:00:31]} Bb4 {[%emt 0:00:38]} 8. Bd2 {[%emt 0:00:09]} Bxc3 {[%emt 0:00:27]} 9. Bxc3 {[%emt 0:00:07]} e4 {[%emt 0:00:18]} 10. Nd2 {[%emt 0:00:23]} Nf6 {[%emt 0:00:48]} 11. Bc4 {[%emt 0:00:32]} Qg5 {[%emt 0:00:54]} 12. Qb3 {[%emt 0:04:33]} O-O {[%emt 0:03:50]} 13. d5 {[%emt 0:11:08]} e3 {[%emt 0:05:14]} 14. Bxf6 {[%emt 0:33:47]} exd2+ {[%emt 0:05:10]} 15. Kf1 {[%emt 0:01:06]} Qxf6 {[%emt 0:03:06]} 16. dxc6 {[%emt 0:00:17]} bxc6 {[%emt 0:05:06]} 17. Rd1 {[%emt 0:04:55]} Rd8 {[%emt 0:01:29]} 18. Qc3 {[%emt 0:10:31]} Qd6 {[%emt 0:07:46]} 19. Ke2 {[%emt 0:10:11]} Re8+ {[%emt 0:04:09]} 20. Kf1 {[%emt 0:00:10]} Be6 {[%emt 0:03:04]} 21. b3 {[%emt 0:09:54]} Rad8 {[%emt 0:01:58]} 22. h4 {[%emt 0:04:59]} Bxc4+ {[%emt 0:01:31]} 23. Qxc4 {[%emt 0:00:21]} Re1+ {[%emt 0:00:21]} 0-1

[Event "GER-chW 2019"]
[Site "Magdeburg"]
[Date "2019.05.28"]
[Round "4.5"]
[White "Kunze, Kerstin"]
[Black "Just, Anita"]
[Result "1-0"]
[ECO "C00"]
[WhiteElo "2066"]
[BlackElo "1866"]
[Annotator "NA"]
[PlyCount "65"]
[EventDate "2019.05.26"]
[EventType "tourn"]
[EventCountry "GER"]
[SourceTitle "playchess.com"]
[Source "ChessBase"]
[SourceQuality "1"]
[TimeControl "40/5400+30:1800+30"]

1. e4 {[%emt 0:00:00]} e6 {[%emt 0:00:00]} 2. Qe2 {[%emt 0:00:01]} c5 {[%emt 0:00:32]} 3. g3 {[%emt 0:00:19]} b6 {[%emt 0:03:54]} 4. Bg2 {[%emt 0:00:35]} Bb7 {[%emt 0:00:44]} 5. f4 {[%emt 0:09:26]} Nc6 {[%emt 0:05:49]} 6. Nf3 {[%emt 0:11:31]} Qc7 {[%emt 0:04:18]} 7. d3 {[%emt 0:17:15]} Nf6 {[%emt 0:12:10]} 8. c3 {[%emt 0:18:57]} O-O-O {[%emt 0:09:25]} 9. Na3 {[%emt 0:02:29]} d5 {[%emt 0:08:43]} 10. e5 {[%emt 0:00:34]} Nd7 {[%emt 0:00:55]} 11. Nb5 {[%emt 0:01:18]} Qb8 {[%emt 0:00:25]} 12. Ng5 {[%emt 0:00:16]} a6 {[%emt 0:09:36]} 13. Nxf7 {[%emt 0:01:29]} axb5 {[%emt 0:01:27]} 14. Nxh8 {[%emt 0:00:07]} Be7 {[%emt 0:02:27]} 15. Nf7 {[%emt 0:00:19]} Rf8 {[%emt 0:00:59]} 16. Nd6+ {[%emt 0:04:52]} Bxd6 {[%emt 0:00:36]} 17. exd6 {[%emt 0:00:07]} Qxd6 {[%emt 0:00:38]} 18. O-O {[%emt 0:00:13]} Nf6 {[%emt 0:08:36]} 19. Bd2 {[%emt 0:02:09]} h5 {[%emt 0:01:53]} 20. Rae1 {[%emt 0:00:17]} Re8 {[%emt 0:02:27]} 21. Bh3 {[%emt 0:03:14]} Nd8 {[%emt 0:01:41]} 22. Bg2 {[%emt 0:12:22]} h4 {[%emt 0:03:00]} 23. g4 {[%emt 0:02:24]} h3 {[%emt 0:03:43]} 24. Bxh3 {[%emt 0:01:20]} Rh8 {[%emt 0:00:15]} 25. Bg2 {[%emt 0:00:12]} g5 {[%emt 0:04:52]} 26. h3 {[%emt 0:00:09]} Nd7 {[%emt 0:03:17]} 27. d4 {[%emt 0:04:24]} gxf4 {[%emt 0:06:01]} 28. Bxf4 {[%emt 0:00:52]} Qc6 {[%emt 0:02:25]} 29. Bg3 {[%emt 0:00:50]} Rh7 {[%emt 0:01:10]} 30. h4 {[%emt 0:02:06]} Nf7 {[%emt 0:00:44]} 31. Qxe6 {[%emt 0:00:37]} Qxe6 {[%emt 0:00:19]} 32. Rxe6 {[%emt 0:00:06]} Nh6 {[%emt 0:00:48]} 33. Re8# {[%emt 0:00:17]} 1-0

[Event "GER-chW 2019"]
[Site "Magdeburg"]
[Date "2019.05.28"]
[Round "4.6"]
[White "Freter, Anke"]
[Black "Mehling, Katharina"]
[Result "0-1"]
[ECO "C02"]
[WhiteElo "1873"]
[BlackElo "1974"]
[Annotator "NA"]
[PlyCount "66"]
[EventDate "2019.05.26"]
[EventType "tourn"]
[EventCountry "GER"]
[SourceTitle "playchess.com"]
[Source "ChessBase"]
[SourceQuality "1"]
[TimeControl "40/5400+30:1800+30"]

1. e4 {[%emt 0:00:00]} e6 {[%emt 0:00:00]} 2. d4 {[%emt 0:00:00]} d5 {[%emt 0:00:00]} 3. e5 {[%emt 0:00:00]} c5 {[%emt 0:00:00]} 4. c3 {[%emt 0:00:00]} Nc6 {[%emt 0:00:00]} 5. Nf3 {[%emt 0:00:00]} Bd7 {[%emt 0:00:06]} 6. Be2 {[%emt 0:00:32]} Nge7 {[%emt 0:00:29]} 7. O-O {[%emt 0:02:50]} Ng6 {[%emt 0:02:11]} 8. a3 {[%emt 0:03:26]} cxd4 {[%emt 0:03:06]} 9. cxd4 {[%emt 0:00:08]} Be7 {[%emt 0:00:18]} 10. Nc3 {[%emt 0:02:46]} O-O {[%emt 0:00:36]} 11. b4 {[%emt 0:03:52]} f6 {[%emt 0:01:29]} 12. b5 {[%emt 0:04:47]} Na5 {[%emt 0:03:10]} 13. Bd3 {[%emt 0:05:23]} Qe8 {[%emt 0:11:37]} 14. a4 {[%emt 0:06:50]} Rc8 {[%emt 0:00:57]} 15. Ne2 {[%emt 0:04:41]} fxe5 {[%emt 0:00:50]} 16. dxe5 {[%emt 0:00:51]} Nc4 {[%emt 0:01:08]} 17. Bxc4 {[%emt 0:04:06]} Rxc4 {[%emt 0:00:31]} 18. Ng3 {[%emt 0:07:01]} a6 {[%emt 0:07:25]} 19. bxa6 {[%emt 0:04:03]} Bxa4 {[%emt 0:03:38]} 20. Qd2 {[%emt 0:00:47]} bxa6 {[%emt 0:00:47]} 21. Ng5 {[%emt 0:05:59]} Bb4 {[%emt 0:06:05]} 22. Qa2 {[%emt 0:02:24]} Bb5 {[%emt 0:01:41]} 23. Rd1 {[%emt 0:02:50]} Qc6 {[%emt 0:09:02]} 24. Qb1 {[%emt 0:04:15]} Ba4 {[%emt 0:11:25]} 25. Rf1 {[%emt 0:02:20]} Bc2 {[%emt 0:00:38]} 26. Qa2 {[%emt 0:00:33]} a5 {[%emt 0:01:03]} 27. Bb2 {[%emt 0:00:50]} Nf4 {[%emt 0:04:13]} 28. f3 {[%emt 0:02:19]} h6 {[%emt 0:00:56]} 29. Nh3 {[%emt 0:00:39]} Nxh3+ {[%emt 0:01:44]} 30. gxh3 {[%emt 0:00:03]} Qb6+ {[%emt 0:01:38]} 31. Kg2 {[%emt 0:00:18]} Qe3 {[%emt 0:00:55]} 32. Rac1 {[%emt 0:01:21]} Bd3 {[%emt 0:02:28]} 33. Rfd1 {[%emt 0:00:31]} Qxf3+ {[%emt 0:00:17]} 0-1

[Event "GER-chW 2019"]
[Site "Magdeburg"]
[Date "2019.05.28"]
[Round "4.7"]
[White "Erofeev, Anastasia"]
[Black "Zimmer, Elke"]
[Result "1-0"]
[ECO "A41"]
[WhiteElo "2003"]
[BlackElo "1926"]
[Annotator "NA"]
[PlyCount "101"]
[EventDate "2019.05.26"]
[EventType "tourn"]
[EventCountry "GER"]
[SourceTitle "playchess.com"]
[Source "ChessBase"]
[SourceQuality "1"]
[TimeControl "40/5400+30:1800+30"]

1. d4 {[%emt 0:00:00]} d6 {[%emt 0:00:09]} 2. c4 {[%emt 0:00:34]} g6 {[%emt 0:01:06]} 3. g3 {[%emt 0:01:10]} Bg7 {[%emt 0:00:18]} 4. Bg2 {[%emt 0:00:11]} Nf6 {[%emt 0:01:13]} 5. Nc3 {[%emt 0:02:40]} O-O {[%emt 0:00:35]} 6. Nf3 {[%emt 0:00:08]} c6 {[%emt 0:11:48]} 7. O-O {[%emt 0:00:13]} Be6 {[%emt 0:00:10]} 8. b3 {[%emt 0:09:28]} d5 {[%emt 0:07:06]} 9. cxd5 {[%emt 0:09:02]} cxd5 {[%emt 0:00:33]} 10. Bf4 {[%emt 0:05:45]} Nh5 {[%emt 0:13:56]} 11. Be3 {[%emt 0:12:39]} h6 {[%emt 0:03:36]} 12. Ne5 {[%emt 0:02:02]} Nc6 {[%emt 0:02:04]} 13. Nxc6 {[%emt 0:09:07]} bxc6 {[%emt 0:00:08]} 14. Qd2 {[%emt 0:01:12]} Kh7 {[%emt 0:00:27]} 15. Na4 {[%emt 0:00:38]} Nf6 {[%emt 0:09:12]} 16. Nc5 {[%emt 0:01:58]} Bc8 {[%emt 0:00:50]} 17. h3 {[%emt 0:02:39]} Nd7 {[%emt 0:00:56]} 18. Rac1 {[%emt 0:01:07]} Nxc5 {[%emt 0:00:59]} 19. Rxc5 {[%emt 0:00:29]} Bd7 {[%emt 0:02:31]} 20. Rfc1 {[%emt 0:02:06]} a5 {[%emt 0:00:46]} 21. Kh2 {[%emt 0:01:58]} Re8 {[%emt 0:00:10]} 22. Bf4 {[%emt 0:09:29]} g5 {[%emt 0:02:58]} 23. Qd3+ {[%emt 0:01:26]} Kg8 {[%emt 0:00:14]} 24. Bd2 {[%emt 0:01:17]} e6 {[%emt 0:04:59]} 25. e4 {[%emt 0:06:50]} Bf8 {[%emt 0:07:40]} 26. R5c2 {[%emt 0:00:57]} Bb4 {[%emt 0:00:19]} 27. Be3 {[%emt 0:01:52]} Qe7 {[%emt 0:00:31]} 28. e5 {[%emt 0:03:25]} Reb8 {[%emt 0:00:27]} 29. f4 {[%emt 0:00:55]} a4 {[%emt 0:01:10]} 30. fxg5 {[%emt 0:02:41]} hxg5 {[%emt 0:00:07]} 31. Rf1 {[%emt 0:01:44]} axb3 {[%emt 0:00:15]} 32. axb3 {[%emt 0:00:14]} c5 {[%emt 0:02:41]} 33. Rf6 {[%emt 0:01:20]} Bb5 {[%emt 0:00:53]} 34. Qd1 {[%emt 0:00:09]} Kf8 {[%emt 0:04:13]} 35. Qh5 {[%emt 0:00:53]} Ke8 {[%emt 0:00:09]} 36. Rcf2 {[%emt 0:00:16]} cxd4 {[%emt 0:01:38]} 37. Bxd4 {[%emt 0:00:40]} Rb7 {[%emt 0:00:46]} 38. Rxf7 {[%emt 0:02:56]} Qxf7 {[%emt 0:00:42]} 39. Qh8+ {[%emt 0:00:08]} Qf8 {[%emt 0:00:04]} 40. Rxf8+ {[%emt 0:00:06]} Bxf8 {[%emt 0:00:05]} 41. Qg8 {[%emt 0:11:57]} Rf7 {[%emt 0:00:38]} 42. Qg6 {[%emt 0:02:04]} Ra6 {[%emt 0:00:58]} 43. Bf3 {[%emt 0:01:49]} Ra2+ {[%emt 0:01:05]} 44. Kh1 {[%emt 0:00:01]} Be2 {[%emt 0:02:27]} 45. Qxe6+ {[%emt 0:02:04]} Be7 {[%emt 0:00:06]} 46. Qc8+ {[%emt 0:02:21]} Bd8 {[%emt 0:00:15]} 47. Qe6+ {[%emt 0:03:16]} Be7 {[%emt 0:00:13]} 48. Qc6+ {[%emt 0:01:26]} Kf8 {[%emt 0:02:14]} 49. Qc8+ {[%emt 0:02:08]} Kg7 {[%emt 0:00:05]} 50. e6+ {[%emt 0:00:14]} Bf6 {[%emt 0:00:22]} 51. Bxe2 {[%emt 0:00:46]} 1-0